[Event "Krakow Championship-C 2022"]
[Site "Krakow"]
[Date "2022.06.26"]
[Round "3.2"]
[White "Chmielewski, Miroslaw"]
[Black "Jokel, Marcin"]
[Result "1-0"]
[ECO "B10"]
[WhiteElo "1571"]
[BlackElo "1413"]
[Annotator "NA RC"]
[PlyCount "113"]
[EventDate "2022.06.25"]
[EventType "swiss"]
[EventCountry "POL"]
[SourceTitle "playchess.com"]
[Source "ChessBase"]
[SourceQuality "1"]
[TimeControl "5400+30"]

1. e4 {[%emt 0:13:04]} c6 {[%emt 0:00:08]} 2. Ne2 {[%emt 0:06:47]} d5 {[%emt 0:01:41]} 3. Ng3 {[%emt 0:00:42]} dxe4 {[%emt 0:01:28]} 4. Nc3 {[%emt 0:01:35]} e3 {[%emt 0:04:36]} 5. dxe3 {[%emt 0:06:21]} Qxd1+ {[%emt 0:00:39]} 6. Nxd1 {[%emt 0:00:21]} Nf6 {[%emt 0:00:45]} 7. Be2 {[%emt 0:00:28]} g6 {[%emt 0:05:15]} 8. b3 {[%emt 0:03:49]} Bg7 {[%emt 0:00:55]} 9. Bb2 {[%emt 0:00:07]} O-O {[%emt 0:01:02]} 10. e4 {[%emt 0:04:11]} h5 {[%emt 0:11:22]} 11. f3 {[%emt 0:03:15]} b6 {[%emt 0:05:53]} 12. Ne3 {[%emt 0:02:37]} Ba6 {[%emt 0:05:21]} 13. Rd1 {[%emt 0:05:56]} Bxe2 {[%emt 0:02:58]} 14. Nxe2 {[%emt 0:00:35]} e6 {[%emt 0:03:54]} 15. h3 {[%emt 0:02:48]} c5 {[%emt 0:03:26]} 16. g4 {[%emt 0:01:35]} h4 {[%emt 0:04:33]} 17. g5 {[%emt 0:02:31]} Nh5 {[%emt 0:01:02]} 18. Bxg7 {[%emt 0:00:14]} Kxg7 {[%emt 0:00:58]} 19. e5 {[%emt 0:03:28]} Nc6 {[%emt 0:01:39]} 20. Ng4 {[%emt 0:03:07]} Rad8 {[%emt 0:03:14]} 21. Kf2 {[%emt 0:01:24]} Nb4 {[%emt 0:05:18]} 22. c3 {[%emt 0:00:37]} Nd3+ {[%emt 0:04:19]} 23. Ke3 {[%emt 0:01:22]} c4 {[%emt 0:02:38]} 24. bxc4 {[%emt 0:00:34]} Nb2 {[%emt 0:00:16]} 25. Rd4 {[%emt 0:03:09]} Rxd4 {[%emt 0:01:05]} 26. cxd4 {[%emt 0:00:32]} Nxc4+ {[%emt 0:00:34]} 27. Kd3 {[%emt 0:01:28]} b5 {[%emt 0:00:46]} 28. Rb1 {[%emt 0:02:32]} Rb8 {[%emt 0:01:43]} 29. Nf6 {[%emt 0:00:44]} Nxf6 {[%emt 0:03:03]} 30. gxf6+ {[%emt 0:00:33]} Kh6 {[%emt 0:02:05]} 31. Nc3 {[%emt 0:04:02]} Na3 {[%emt 0:01:37]} 32. Rb3 {[%emt 0:01:19]} b4 {[%emt 0:00:36]} 33. Ne4 {[%emt 0:00:15]} Kh7 {[%emt 0:02:52]} 34. Nd6 {[%emt 0:05:20]} Kg8 {[%emt 0:00:43]} 35. Nc4 {[%emt 0:03:00]} Nxc4 {[%emt 0:01:14]} 36. Kxc4 {[%emt 0:00:09]} a5 {[%emt 0:00:21]} 37. Kc5 {[%emt 0:01:13]} Rc8+ {[%emt 0:00:59]} 38. Kb5 {[%emt 0:00:12]} Rc2 {[%emt 0:03:15]} 39. Kxa5 {[%emt 0:00:33]} Rxa2+ {[%emt 0:01:05]} 40. Kxb4 {[%emt 0:00:10]} g5 {[%emt 0:00:12]} 41. Kc5 {[%emt 0:04:51]} Ra8 {[%emt 0:02:12]} 42. Kc6 {[%emt 0:03:39]} Rd8 {[%emt 0:01:02]} 43. Kc5 {[%emt 0:02:11]} Rd5+ {[%emt 0:00:55]} 44. Kc4 {[%emt 0:00:08]} Kh7 {[%emt 0:01:22]} 45. Kd3 {[%emt 0:03:24]} Rd8 {[%emt 0:01:20]} 46. Ke4 {[%emt 0:00:18]} Ra8 {[%emt 0:01:20]} 47. f4 {[%emt 0:00:49]} gxf4 {[%emt 0:00:59]} 48. Kxf4 {[%emt 0:00:07]} Kg6 {[%emt 0:02:46]} 49. Kg4 {[%emt 0:01:14]} Rh8 {[%emt 0:00:33]} 50. Rb2 {[%emt 0:00:54]} Rd8 {[%emt 0:00:44]} 51. Rd2 {[%emt 0:00:22]} Rh8 {[%emt 0:01:54]} 52. Rg2 {[%emt 0:00:13]} Rd8 {[%emt 0:00:41]} 53. Kf4+ {[%emt 0:00:38]} Kh6 {[%emt 0:01:18]} 54. Ke4 {[%emt 0:00:07]} Kh7 {[%emt 0:00:51]} 55. Rg7+ {[%emt 0:00:20]} Kh8 {[%emt 0:00:09]} 56. Rxf7 {[%emt 0:00:10]} Rd5 {[%emt 0:00:33]} 57. Re7 {[%emt 0:00:19]} 1-0

[Event "Krakow Championship-C 2022"]
[Site "Krakow"]
[Date "2022.06.26"]
[Round "3.3"]
[White "Lesniak, Wojciech"]
[Black "Wandor, Adam"]
[Result "1-0"]
[ECO "D35"]
[WhiteElo "1368"]
[BlackElo "1456"]
[Annotator "NA RC"]
[PlyCount "61"]
[EventDate "2022.06.25"]
[EventType "swiss"]
[EventCountry "POL"]
[SourceTitle "playchess.com"]
[Source "ChessBase"]
[SourceQuality "1"]
[TimeControl "5400+30"]

1. d4 {[%emt 0:00:05]} d5 {[%emt 0:00:09]} 2. c4 {[%emt 0:00:11]} e6 {[%emt 0:00:14]} 3. Nc3 {[%emt 0:00:10]} Nf6 {[%emt 0:00:24]} 4. cxd5 {[%emt 0:00:14]} exd5 {[%emt 0:00:14]} 5. Bg5 {[%emt 0:00:26]} Be7 {[%emt 0:01:15]} 6. e3 {[%emt 0:00:51]} O-O {[%emt 0:00:50]} 7. Bd3 {[%emt 0:01:03]} c6 {[%emt 0:01:29]} 8. Nge2 {[%emt 0:02:18]} Nbd7 {[%emt 0:01:34]} 9. O-O {[%emt 0:00:49]} h6 {[%emt 0:01:07]} 10. Bh4 {[%emt 0:00:29]} Re8 {[%emt 0:01:45]} 11. f3 {[%emt 0:02:35]} Nf8 {[%emt 0:07:41]} 12. Qc2 {[%emt 0:02:27]} N6h7 {[%emt 0:04:51]} 13. Bf2 {[%emt 0:01:47]} Be6 {[%emt 0:06:43]} 14. e4 {[%emt 0:09:22]} Bb4 {[%emt 0:15:34]} 15. e5 {[%emt 0:04:07]} f6 {[%emt 0:03:50]} 16. f4 {[%emt 0:03:35]} Bf7 {[%emt 0:04:38]} 17. a3 {[%emt 0:06:05]} Ba5 {[%emt 0:00:57]} 18. b4 {[%emt 0:00:52]} Bb6 {[%emt 0:00:58]} 19. Rae1 {[%emt 0:01:28]} fxe5 {[%emt 0:00:48]} 20. dxe5 {[%emt 0:02:37]} g6 {[%emt 0:05:28]} 21. Nd4 {[%emt 0:02:48]} Bc7 {[%emt 0:07:11]} 22. Na4 {[%emt 0:17:30]} Kg7 {[%emt 0:02:08]} 23. Nc5 {[%emt 0:01:19]} Qc8 {[%emt 0:00:49]} 24. e6 {[%emt 0:03:17]} Nxe6 {[%emt 0:02:54]} 25. Ncxe6+ {[%emt 0:00:49]} Bxe6 {[%emt 0:00:13]} 26. Bxg6 {[%emt 0:00:23]} Nf8 {[%emt 0:00:58]} 27. Bxe8 {[%emt 0:05:48]} Qxe8 {[%emt 0:00:08]} 28. Nxe6+ {[%emt 0:01:39]} Nxe6 {[%emt 0:00:07]} 29. Qe2 {[%emt 0:01:32]} Bxf4 {[%emt 0:00:28]} 30. Qxe6 {[%emt 0:01:38]} Qh5 {[%emt 0:00:07]} 31. Bd4+ {[%emt 0:01:03]} 1-0

[Event "Krakow Championship-C 2022"]
[Site "Krakow"]
[Date "2022.06.26"]
[Round "3.4"]
[White "Pawlak, Emilia"]
[Black "Cwiek, Stefan"]
[Result "0-1"]
[ECO "A20"]
[WhiteElo "1477"]
[BlackElo "1280"]
[Annotator "NA RC"]
[PlyCount "88"]
[EventDate "2022.06.25"]
[EventType "swiss"]
[EventCountry "POL"]
[SourceTitle "playchess.com"]
[Source "ChessBase"]
[SourceQuality "1"]
[TimeControl "5400+30"]

1. c4 {[%emt 0:00:00]} e5 {[%emt 0:00:00]} 2. g3 {[%emt 0:00:00]} Nc6 {[%emt 0:00:00]} 3. Bg2 {[%emt 0:00:06]} f5 {[%emt 0:00:04]} 4. Nc3 {[%emt 0:00:23]} Nf6 {[%emt 0:00:15]} 5. d3 {[%emt 0:00:36]} Bb4 {[%emt 0:00:42]} 6. Bd2 {[%emt 0:02:21]} d6 {[%emt 0:00:24]} 7. e3 {[%emt 0:00:22]} O-O {[%emt 0:01:32]} 8. Nge2 {[%emt 0:07:26]} Qe8 {[%emt 0:03:34]} 9. O-O {[%emt 0:02:37]} Qh5 {[%emt 0:03:11]} 10. f4 {[%emt 0:04:27]} Bc5 {[%emt 0:07:29]} 11. Nd5 {[%emt 0:02:48]} Bb6 {[%emt 0:02:06]} 12. Nec3 {[%emt 0:00:49]} Qxd1 {[%emt 0:00:17]} 13. Raxd1 Be6 {[%emt 0:00:11]} 14. Nxb6 {[%emt 0:03:17]} axb6 {[%emt 0:06:50]} 15. a3 {[%emt 0:05:16]} e4 {[%emt 0:00:55]} 16. dxe4 {[%emt 0:00:19]} Bxc4 {[%emt 0:00:18]} 17. Rfe1 {[%emt 0:01:15]} fxe4 {[%emt 0:01:40]} 18. Nxe4 {[%emt 0:00:06]} Nxe4 {[%emt 0:01:54]} 19. Bxe4 {[%emt 0:01:56]} d5 {[%emt 0:11:38]} 20. Bg2 Rfd8 {[%emt 0:00:13]} 21. Bc3 {[%emt 0:03:48]} b5 {[%emt 0:07:18]} 22. Rd2 {[%emt 0:07:12]} Na5 {[%emt 0:02:57]} 23. Red1 {[%emt 0:10:31]} c6 {[%emt 0:06:55]} 24. Rf2 {[%emt 0:03:03]} Re8 {[%emt 0:00:37]} 25. Re1 {[%emt 0:05:07]} Nb3 {[%emt 0:04:05]} 26. Bf3 {[%emt 0:06:28]} Nc5 {[%emt 0:17:16]} 27. Rd1 {[%emt 0:02:00]} Bb3 {[%emt 0:03:58]} 28. Rdf1 {[%emt 0:02:01]} Ra4 {[%emt 0:03:13]} 29. Bd1 {[%emt 0:03:30]} Rxe3 {[%emt 0:01:39]} 30. Bb4 Ne4 {[%emt 0:00:19]} 31. Bxb3 {[%emt 0:01:14]} Rxb3 {[%emt 0:01:58]} 32. Re2 {[%emt 0:00:28]} c5 {[%emt 0:01:21]} 33. Be1 {[%emt 0:01:24]} Rd4 {[%emt 0:00:54]} 34. g4 {[%emt 0:01:41]} Rd1 {[%emt 0:01:08]} 35. f5 {[%emt 0:00:22]} Kf7 {[%emt 0:00:33]} 36. Kg2 {[%emt 0:01:47]} Rb1 {[%emt 0:01:51]} 37. Rf3 {[%emt 0:00:37]} R1xb2 {[%emt 0:00:07]} 38. Rxb2 {[%emt 0:00:08]} Rxb2+ {[%emt 0:01:39]} 39. Kg1 {[%emt 0:00:34]} d4 {[%emt 0:00:23]} 40. Rf4 {[%emt 0:01:08]} Nc3 {[%emt 0:01:37]} 41. Kf1 {[%emt 0:00:39]} Nd5 {[%emt 0:00:21]} 42. Rf2 {[%emt 0:00:05]} Ne3+ {[%emt 0:00:30]} 43. Kg1 {[%emt 0:00:36]} Rxf2 {[%emt 0:00:04]} 44. Kxf2 Nxg4+ 0-1

[Event "Krakow Championship-C 2022"]
[Site "Krakow"]
[Date "2022.06.26"]
[Round "3.5"]
[White "Wegrzyn, Bartosz"]
[Black "Olszewski, Antoni"]
[Result "1/2-1/2"]
[ECO "D11"]
[WhiteElo "1286"]
[BlackElo "1532"]
[Annotator "NA RC"]
[PlyCount "61"]
[EventDate "2022.06.25"]
[EventType "swiss"]
[EventCountry "POL"]
[SourceTitle "playchess.com"]
[Source "ChessBase"]
[SourceQuality "1"]
[TimeControl "5400+30"]

1. d4 {[%emt 0:00:03]} d5 {[%emt 0:00:16]} 2. c4 {[%emt 0:00:05]} c6 {[%emt 0:00:06]} 3. Nf3 {[%emt 0:00:07]} e6 {[%emt 0:00:32]} 4. e3 {[%emt 0:00:09]} Nf6 {[%emt 0:00:18]} 5. b3 {[%emt 0:00:06]} Nbd7 {[%emt 0:01:19]} 6. Bd3 {[%emt 0:01:01]} Bb4+ {[%emt 0:04:57]} 7. Nbd2 {[%emt 0:00:27]} Bc3 {[%emt 0:01:50]} 8. Rb1 {[%emt 0:00:19]} e5 {[%emt 0:00:26]} 9. dxe5 {[%emt 0:05:04]} Nxe5 {[%emt 0:00:26]} 10. Nxe5 {[%emt 0:00:11]} Bxe5 {[%emt 0:00:07]} 11. O-O {[%emt 0:04:36]} O-O {[%emt 0:09:04]} 12. Nf3 {[%emt 0:07:23]} Bc7 {[%emt 0:01:28]} 13. h3 {[%emt 0:01:49]} Ne4 {[%emt 0:05:41]} 14. Qc2 {[%emt 0:01:21]} Re8 {[%emt 0:07:49]} 15. Rd1 {[%emt 0:03:43]} Qe7 {[%emt 0:06:39]} 16. cxd5 {[%emt 0:03:29]} cxd5 {[%emt 0:00:07]} 17. Bb2 {[%emt 0:02:00]} Bf5 {[%emt 0:03:22]} 18. Nd4 {[%emt 0:04:38]} Bg6 {[%emt 0:03:16]} 19. Rbc1 {[%emt 0:05:19]} Be5 {[%emt 0:04:31]} 20. Nf3 {[%emt 0:08:17]} Bxb2 {[%emt 0:02:27]} 21. Qxb2 {[%emt 0:00:08]} a6 {[%emt 0:04:22]} 22. Be2 {[%emt 0:07:20]} Rad8 {[%emt 0:04:53]} 23. Qd4 {[%emt 0:03:58]} Rc8 {[%emt 0:07:34]} 24. Qb2 {[%emt 0:15:46]} Rxc1 {[%emt 0:05:30]} 25. Rxc1 {[%emt 0:00:44]} h6 {[%emt 0:03:37]} 26. Ne1 {[%emt 0:04:55]} Rd8 {[%emt 0:12:43]} 27. Bf3 {[%emt 0:03:07]} Ng5 {[%emt 0:01:27]} 28. Bg4 {[%emt 0:08:54]} h5 {[%emt 0:02:37]} 29. Be2 {[%emt 0:00:47]} Ne6 {[%emt 0:00:57]} 30. Nf3 {[%emt 0:01:12]} Be4 {[%emt 0:02:21]} 31. Nd2 {[%emt 0:01:54]} 1/2-1/2

[Event "Krakow Championship-C 2022"]
[Site "Krakow"]
[Date "2022.06.26"]
[Round "3.6"]
[White "Jaromin, Maciej"]
[Black "Bajer, Tomasz"]
[Result "1-0"]
[ECO "A57"]
[WhiteElo "1479"]
[BlackElo "1437"]
[Annotator "NA RC"]
[PlyCount "117"]
[EventDate "2022.06.25"]
[EventType "swiss"]
[EventCountry "POL"]
[SourceTitle "playchess.com"]
[Source "ChessBase"]
[SourceQuality "1"]
[TimeControl "5400+30"]

1. d4 {[%emt 0:00:02]} Nf6 {[%emt 0:00:11]} 2. c4 {[%emt 0:00:03]} c5 {[%emt 0:00:05]} 3. d5 {[%emt 0:00:04]} b5 {[%emt 0:00:14]} 4. cxb5 {[%emt 0:00:11]} a6 {[%emt 0:00:09]} 5. e3 {[%emt 0:00:06]} e6 {[%emt 0:03:12]} 6. Nc3 {[%emt 0:00:27]} Bb7 {[%emt 0:01:51]} 7. e4 {[%emt 0:01:50]} exd5 {[%emt 0:01:49]} 8. exd5 {[%emt 0:00:39]} Bd6 {[%emt 0:02:00]} 9. Nf3 {[%emt 0:03:02]} O-O {[%emt 0:01:12]} 10. Be2 {[%emt 0:00:16]} axb5 {[%emt 0:02:48]} 11. Bxb5 {[%emt 0:06:11]} Re8+ {[%emt 0:02:26]} 12. Be2 {[%emt 0:00:11]} Be5 {[%emt 0:06:28]} 13. Nxe5 {[%emt 0:21:26]} Rxe5 {[%emt 0:00:09]} 14. O-O {[%emt 0:00:46]} Nxd5 {[%emt 0:01:25]} 15. Nxd5 {[%emt 0:01:46]} Rxd5 {[%emt 0:04:35]} 16. Qb3 {[%emt 0:00:10]} Bc6 {[%emt 0:01:04]} 17. Bf3 {[%emt 0:05:08]} Rd4 {[%emt 0:03:30]} 18. Bxc6 {[%emt 0:01:07]} Nxc6 {[%emt 0:00:17]} 19. Be3 {[%emt 0:00:08]} Rb4 {[%emt 0:02:34]} 20. Qc3 {[%emt 0:00:18]} Qb8 {[%emt 0:12:33]} 21. b3 {[%emt 0:01:44]} Nd4 {[%emt 0:13:26]} 22. Bxd4 {[%emt 0:01:04]} Rxd4 {[%emt 0:03:19]} 23. Qxc5 {[%emt 0:00:44]} Rd2 {[%emt 0:00:30]} 24. Rfc1 {[%emt 0:02:03]} h6 {[%emt 0:01:25]} 25. Rc2 {[%emt 0:00:11]} Qf4 {[%emt 0:03:44]} 26. g3 {[%emt 0:01:29]} Qd4 {[%emt 0:03:10]} 27. Qxd4 {[%emt 0:00:12]} Rxd4 {[%emt 0:00:06]} 28. Rac1 {[%emt 0:00:06]} Kh7 {[%emt 0:00:30]} 29. a4 {[%emt 0:00:48]} Rb4 {[%emt 0:00:07]} 30. Rc3 {[%emt 0:00:12]} Rab8 {[%emt 0:00:07]} 31. Rd1 {[%emt 0:00:30]} R8b7 {[%emt 0:05:32]} 32. Rdd3 {[%emt 0:00:13]} Kg6 {[%emt 0:03:31]} 33. Kf1 {[%emt 0:00:42]} f6 {[%emt 0:01:22]} 34. Ke2 {[%emt 0:00:20]} Kf7 {[%emt 0:01:42]} 35. Kd2 {[%emt 0:00:08]} Ke6 {[%emt 0:01:08]} 36. Kc2 {[%emt 0:02:30]} d5 {[%emt 0:01:30]} 37. Rc5 {[%emt 0:00:48]} d4 {[%emt 0:01:10]} 38. Rb5 {[%emt 0:02:26]} R7xb5 {[%emt 0:00:11]} 39. axb5 {[%emt 0:00:08]} Kd5 {[%emt 0:00:10]} 40. Rf3 {[%emt 0:00:14]} Ke4 {[%emt 0:00:25]} 41. Rf4+ {[%emt 0:01:06]} Ke5 {[%emt 0:00:57]} 42. Rh4 {[%emt 0:26:43]} Rxb5 {[%emt 0:03:49]} 43. Rh5+ {[%emt 0:00:19]} f5 {[%emt 0:01:20]} 44. g4 {[%emt 0:00:26]} Kf4 {[%emt 0:00:09]} 45. Rxf5+ {[%emt 0:00:06]} Rxf5 {[%emt 0:00:36]} 46. gxf5 {[%emt 0:00:16]} Kxf5 {[%emt 0:00:38]} 47. Kd3 {[%emt 0:00:04]} Ke5 {[%emt 0:00:41]} 48. b4 {[%emt 0:00:16]} g5 {[%emt 0:00:43]} 49. b5 {[%emt 0:00:34]} Kd5 {[%emt 0:00:14]} 50. b6 {[%emt 0:00:09]} Kc6 {[%emt 0:00:04]} 51. Kxd4 {[%emt 0:00:03]} Kxb6 {[%emt 0:00:03]} 52. Ke5 {[%emt 0:00:12]} Kc5 {[%emt 0:00:04]} 53. Kf5 {[%emt 0:00:07]} Kd4 {[%emt 0:00:35]} 54. Kg6 {[%emt 0:00:29]} Ke4 {[%emt 0:01:04]} 55. Kxh6 {[%emt 0:00:08]} Kf5 {[%emt 0:13:35]} 56. h3 {[%emt 0:12:43]} Kf4 {[%emt 0:01:35]} 57. Kg6 {[%emt 0:00:14]} g4 {[%emt 0:00:05]} 58. h4 {[%emt 0:00:10]} Kf3 {[%emt 0:00:21]} 59. Kg5 {[%emt 0:00:13]} 1-0

[Event "Krakow Championship-C 2022"]
[Site "Krakow"]
[Date "2022.06.26"]
[Round "3.7"]
[White "Dymara, Jerzy"]
[Black "Kuznik, Kamil"]
[Result "0-1"]
[ECO "B22"]
[WhiteElo "1217"]
[BlackElo "1456"]
[Annotator "NA RC"]
[PlyCount "84"]
[EventDate "2022.06.25"]
[EventType "swiss"]
[EventCountry "POL"]
[SourceTitle "playchess.com"]
[Source "ChessBase"]
[SourceQuality "1"]
[TimeControl "5400+30"]

1. e4 {[%emt 0:00:03]} c5 {[%emt 0:00:04]} 2. c3 {[%emt 0:00:11]} Nf6 {[%emt 0:00:08]} 3. e5 {[%emt 0:00:08]} Nd5 {[%emt 0:00:05]} 4. Nf3 {[%emt 0:00:14]} Nc6 {[%emt 0:00:38]} 5. d4 {[%emt 0:00:41]} cxd4 {[%emt 0:00:10]} 6. cxd4 {[%emt 0:00:08]} d6 {[%emt 0:00:30]} 7. Bc4 {[%emt 0:01:18]} Nb6 {[%emt 0:00:09]} 8. Bb3 {[%emt 0:00:20]} g6 {[%emt 0:01:04]} 9. O-O {[%emt 0:00:22]} Bg7 {[%emt 0:00:11]} 10. Bf4 {[%emt 0:01:25]} O-O {[%emt 0:02:08]} 11. Nc3 {[%emt 0:00:34]} Bg4 {[%emt 0:01:22]} 12. exd6 {[%emt 0:00:25]} exd6 {[%emt 0:04:09]} 13. h3 {[%emt 0:01:06]} Bxf3 {[%emt 0:00:17]} 14. Qxf3 {[%emt 0:00:07]} Qd7 {[%emt 0:04:06]} 15. d5 {[%emt 0:02:31]} Nd4 {[%emt 0:01:57]} 16. Qd3 {[%emt 0:01:05]} Nxb3 {[%emt 0:00:50]} 17. axb3 {[%emt 0:00:13]} a6 {[%emt 0:03:10]} 18. Qd2 {[%emt 0:01:08]} Rfe8 {[%emt 0:03:19]} 19. Bh6 {[%emt 0:00:49]} Bxh6 20. Qxh6 {[%emt 0:00:15]} Qf5 {[%emt 0:01:08]} 21. g4 {[%emt 0:01:00]} Qf3 {[%emt 0:01:56]} 22. Rfe1 {[%emt 0:00:27]} Nxd5 {[%emt 0:01:37]} 23. Nxd5 {[%emt 0:00:52]} Qxd5 {[%emt 0:00:08]} 24. Rad1 {[%emt 0:00:59]} Qxb3 {[%emt 0:01:46]} 25. Rxe8+ {[%emt 0:01:06]} Rxe8 {[%emt 0:00:05]} 26. Rxd6 {[%emt 0:01:15]} Qf3 {[%emt 0:01:04]} 27. Qd2 {[%emt 0:01:08]} Qxh3 {[%emt 0:00:21]} 28. Qd1 {[%emt 0:00:56]} Qh4 {[%emt 0:01:54]} 29. Rd7 {[%emt 0:01:00]} Re1+ {[%emt 0:00:44]} 30. Qxe1 {[%emt 0:00:13]} Qxg4+ {[%emt 0:00:06]} 31. Kh2 {[%emt 0:00:42]} Qxd7 {[%emt 0:00:06]} 32. Qe5 {[%emt 0:00:25]} Qb5 {[%emt 0:02:13]} 33. Qb8+ {[%emt 0:01:07]} Kg7 {[%emt 0:00:07]} 34. b3 {[%emt 0:00:30]} h5 {[%emt 0:01:23]} 35. Qg3 {[%emt 0:00:32]} Qd5 {[%emt 0:01:07]} 36. Qc3+ {[%emt 0:00:27]} Kh7 {[%emt 0:00:08]} 37. f3 {[%emt 0:00:19]} Qd6+ {[%emt 0:00:28]} 38. Kg2 {[%emt 0:00:17]} h4 {[%emt 0:03:14]} 39. Kf2 {[%emt 0:00:14]} Qg3+ {[%emt 0:00:34]} 40. Ke3 {[%emt 0:00:18]} Qg5+ {[%emt 0:00:45]} 41. Kf2 {[%emt 0:00:38]} b6 {[%emt 0:06:14]} 42. Qb2 {[%emt 0:00:51]} h3 {[%emt 0:01:13]} 0-1

[Event "Krakow Championship-C 2022"]
[Site "Krakow"]
[Date "2022.06.26"]
[Round "3.8"]
[White "Diachek, Andriy"]
[Black "Radwanski, Mikolaj"]
[Result "1-0"]
[ECO "B07"]
[WhiteElo "1451"]
[BlackElo "1349"]
[Annotator "NA RC"]
[PlyCount "95"]
[EventDate "2022.06.25"]
[EventType "swiss"]
[EventCountry "POL"]
[SourceTitle "playchess.com"]
[Source "ChessBase"]
[SourceQuality "1"]
[TimeControl "5400+30"]

1. e4 {[%emt 0:00:01]} d6 {[%emt 0:09:19]} 2. d4 {[%emt 0:00:46]} Nf6 {[%emt 0:00:12]} 3. Nc3 {[%emt 0:00:08]} g6 {[%emt 0:00:26]} 4. Bg5 {[%emt 0:00:19]} h6 {[%emt 0:00:21]} 5. Bxf6 {[%emt 0:00:20]} exf6 {[%emt 0:00:14]} 6. Bd3 {[%emt 0:01:16]} Bg7 {[%emt 0:00:29]} 7. Nge2 {[%emt 0:00:43]} O-O {[%emt 0:01:05]} 8. O-O {[%emt 0:00:14]} Nc6 {[%emt 0:06:40]} 9. f4 {[%emt 0:04:28]} Nb4 {[%emt 0:07:03]} 10. f5 {[%emt 0:00:45]} d5 {[%emt 0:03:22]} 11. fxg6 {[%emt 0:01:10]} fxg6 {[%emt 0:02:44]} 12. Nxd5 {[%emt 0:01:07]} Nxd3 {[%emt 0:04:08]} 13. Qxd3 {[%emt 0:00:17]} c6 {[%emt 0:00:44]} 14. Ndf4 {[%emt 0:00:19]} Qe8 {[%emt 0:12:21]} 15. Ng3 {[%emt 0:01:45]} g5 {[%emt 0:08:31]} 16. Nfe2 {[%emt 0:02:42]} Rf7 {[%emt 0:04:00]} 17. Nf5 {[%emt 0:03:00]} Bxf5 {[%emt 0:00:23]} 18. Rxf5 {[%emt 0:00:12]} Re7 {[%emt 0:00:50]} 19. Ng3 {[%emt 0:02:54]} Rd8 {[%emt 0:01:52]} 20. c3 {[%emt 0:02:08]} h5 {[%emt 0:05:50]} 21. Qf3 {[%emt 0:03:06]} h4 {[%emt 0:01:42]} 22. Nh5 {[%emt 0:00:13]} Rxe4 {[%emt 0:01:43]} 23. Nxf6+ {[%emt 0:00:37]} Bxf6 {[%emt 0:01:03]} 24. Rxf6 {[%emt 0:00:13]} Re1+ {[%emt 0:00:53]} 25. Rxe1 {[%emt 0:00:10]} Qxe1+ {[%emt 0:00:07]} 26. Qf1 {[%emt 0:00:06]} Qxf1+ {[%emt 0:01:27]} 27. Kxf1 {[%emt 0:00:11]} Kg7 {[%emt 0:00:11]} 28. Re6 {[%emt 0:00:29]} Kf7 {[%emt 0:01:04]} 29. Re5 {[%emt 0:00:15]} Kf6 {[%emt 0:05:00]} 30. Kf2 {[%emt 0:01:44]} Rd5 {[%emt 0:01:23]} 31. Rxd5 {[%emt 0:00:30]} cxd5 {[%emt 0:00:51]} 32. a4 {[%emt 0:00:46]} b6 {[%emt 0:02:14]} 33. b3 {[%emt 0:00:15]} Kf5 {[%emt 0:02:56]} 34. Ke3 {[%emt 0:00:33]} Kg4 {[%emt 0:00:45]} 35. c4 {[%emt 0:00:17]} Kf5 {[%emt 0:01:10]} 36. cxd5 {[%emt 0:00:15]} a5 {[%emt 0:01:54]} 37. Kf3 {[%emt 0:00:26]} g4+ {[%emt 0:01:34]} 38. Ke3 {[%emt 0:00:11]} h3 {[%emt 0:00:30]} 39. g3 {[%emt 0:00:08]} Kf6 {[%emt 0:00:20]} 40. Kf4 {[%emt 0:00:09]} Ke7 {[%emt 0:00:10]} 41. Kxg4 {[%emt 0:00:11]} Kd6 {[%emt 0:00:06]} 42. Kf4 {[%emt 0:00:10]} Kxd5 {[%emt 0:00:11]} 43. Ke3 {[%emt 0:00:04]} Kc6 {[%emt 0:00:38]} 44. g4 {[%emt 0:00:09]} b5 {[%emt 0:00:15]} 45. g5 {[%emt 0:00:06]} bxa4 {[%emt 0:00:18]} 46. bxa4 {[%emt 0:00:07]} Kd6 {[%emt 0:00:07]} 47. g6 {[%emt 0:00:05]} Ke6 {[%emt 0:00:07]} 48. d5+ {[%emt 0:00:05]} 1-0